bitfinex/quotes_BTCUSD_20250526
["timestamp","ask_amount","ask_price","bid_price","bid_amount"]
[1748276696634,0.31589014,109500.0,109490.0,2.13150105]
[1748276697020,0.31789014,109500.0,109490.0,2.13150105]
[1748276697218,0.34925839,109500.0,109490.0,1.54773861]
[1748276697429,0.34925839,109500.0,109490.0,1.14738389]
[1748276697430,0.32899414,109500.0,109490.0,1.14738389]
[1748276697651,0.25553023,109500.0,109490.0,0.001]
[1748276697856,0.31399049,109500.0,109490.0,0.002]
[1748276698481,0.25557023,109500.0,109490.0,0.002]
[1748276700681,0.40161023,109500.0,109490.0,0.002]
[1748276700884,0.40161023,109500.0,109490.0,0.001]
[1748276701311,0.49215579,109500.0,109490.0,0.001]
[1748276701839,0.34611579,109500.0,109490.0,0.001]
[1748276702047,0.27384935,109480.0,109470.0,0.01455835]
[1748276702264,0.41988935,109480.0,109470.0,0.01455835]
[1748276702464,1.25773192,109480.0,109470.0,0.01455835]
[1748276703091,0.74636787,109480.0,109470.0,0.01455835]
[1748276703234,0.50043491,109480.0,109470.0,0.01755835]
[1748276703433,0.50043491,109480.0,109470.0,0.003]
[1748276703854,0.26533617,109450.0,109440.0,0.8659224]
[1748276704056,0.41137617,109450.0,109440.0,1.21713791]
[1748276704252,0.41137617,109450.0,109440.0,1.93258585]
[1748276704571,0.17344867,109450.0,109440.0,1.96233994]
[1748276704964,0.41964834,109450.0,109440.0,1.37420781]
[1748276705190,0.26533617,109450.0,109440.0,1.32688428]
[1748276705588,0.26533617,109450.0,109440.0,1.3360217]
[1748276705795,0.26533617,109450.0,109440.0,1.52790757]
[1748276705956,0.26637617,109450.0,109440.0,1.52377023]
[1748276706159,0.25723992,109450.0,109440.0,1.52377023]
[1748276706358,0.31170342,109450.0,109440.0,1.02542972]
[1748276706763,0.31170342,109450.0,109440.0,0.51890667]
[1748276707211,0.31070342,109450.0,109440.0,0.51390667]
[1748276707411,0.31170342,109450.0,109440.0,0.51690667]
[1748276707603,0.30270342,109450.0,109440.0,0.36205667]
[1748276707813,0.30270342,109450.0,109440.0,0.36505667]
[1748276708013,0.24837184,109450.0,109440.0,0.01049832]
[1748276708463,0.24837184,109450.0,109440.0,0.89094837]
[1748276709096,0.25750826,109450.0,109440.0,0.89094837]
[1748276709294,0.35912443,109450.0,109440.0,1.17237988]
[1748276709579,0.34998826,109450.0,109440.0,1.17237988]
[1748276709812,0.34998826,109450.0,109440.0,1.19065447]
[1748276710040,0.25823984,109450.0,109440.0,1.51237988]
[1748276710258,0.25823984,109450.0,109440.0,1.32049393]
[1748276710477,0.39518342,109450.0,109440.0,1.32049393]
[1748276710697,0.39355184,109450.0,109440.0,0.01049832]
[1748276711161,0.39355184,109450.0,109440.0,0.12462532]
[1748276711388,0.39355184,109450.0,109440.0,0.63598937]
[1748276711841,0.39355184,109450.0,109440.0,0.01049832]
[1748276712054,0.39355184,109450.0,109440.0,0.13235132]
[1748276712466,0.39355184,109450.0,109440.0,0.19463632]
[1748276713005,0.39355184,109450.0,109440.0,0.01049832]
[1748276713907,0.4830974,109450.0,109440.0,0.01049832]
[1748276714143,1.06968169,109450.0,109440.0,0.01049832]
[1748276714355,0.55831764,109450.0,109440.0,0.01049832]
[1748276714789,0.55831764,109450.0,109440.0,0.00049832]
[1748276715066,0.75963764,109450.0,109440.0,0.00049832]
[1748276715293,1.27100169,109450.0,109440.0,0.00049832]
[1748276715538,0.26542788,109400.0,109390.0,0.5259224]
[1748276715693,0.41150788,109400.0,109390.0,0.84864749]
[1748276715898,0.46380788,109400.0,109390.0,0.01470788]
[1748276716105,0.4094763,109400.0,109390.0,0.01470788]
[1748276716715,0.49902186,109400.0,109390.0,0.00014953]
[1748276717071,0.50002186,109400.0,109390.0,0.00514953]
[1748276717294,0.56930539,109400.0,109390.0,0.00914953]
[1748276717496,0.56830539,109400.0,109390.0,0.00414953]
[1748276718029,0.56830539,109400.0,109390.0,0.00514953]
[1748276718250,1.07966944,109400.0,109390.0,0.00514953]
[1748276718470,0.2447655,109370.0,109360.0,0.0236983]
[1748276718683,0.50490761,109370.0,109360.0,0.0236983]
[1748276718932,0.20118824,109350.0,109340.0,0.55001864]
[1748276719145,0.4987538,109350.0,109340.0,0.01505016]
[1748276719359,0.4987538,109350.0,109340.0,0.00049181]
[1748276719802,0.40920824,109350.0,109340.0,0.02338522]
[1748276720017,0.40920824,109350.0,109340.0,0.00049181]
[1748276720284,0.55796433,109350.0,109340.0,0.00049181]
[1748276720559,0.4987538,109350.0,109340.0,0.00049181]
[1748276721099,0.4987938,109350.0,109340.0,0.00049181]
[1748276721604,1.01015785,109350.0,109340.0,0.00049181]
[1748276722080,0.5017938,109350.0,109340.0,0.00149181]
[1748276722285,0.59131531,109350.0,109340.0,0.00149181]
[1748276722700,0.79275531,109350.0,109340.0,0.00149181]
[1748276722870,0.44515531,109350.0,109340.0,0.00149181]
[1748276723090,0.79279531,109350.0,109340.0,0.00149181]
[1748276723290,0.79283531,109350.0,109340.0,0.00149181]
[1748276723497,0.44515531,109350.0,109340.0,0.00149181]
[1748276723712,0.79283531,109350.0,109340.0,0.00149181]
[1748276723915,0.44515531,109350.0,109340.0,0.00149181]
[1748276724124,1.30619936,109350.0,109340.0,0.00249181]
[1748276724747,0.79483531,109350.0,109340.0,0.00249181]
[1748276725166,0.7053538,109350.0,109340.0,0.00249181]
[1748276725369,0.3576738,109350.0,109340.0,0.00249181]
[1748276725578,0.7053538,109350.0,109340.0,0.00249181]
[1748276725782,0.3576738,109350.0,109340.0,0.00249181]
[1748276725992,0.5038738,109350.0,109340.0,0.00249181]
[1748276726200,1.10475936,109350.0,109340.0,0.00249181]
[1748276726409,0.59339531,109350.0,109340.0,0.00249181]
[1748276726831,1.10475936,109350.0,109340.0,0.00249181]
[1748276727243,0.20126186,109310.0,109300.0,0.67088279]
[1748276727457,0.50024742,109310.0,109300.0,0.67088279]
[1748276727658,0.58809255,109310.0,109300.0,0.67088279]
[1748276727865,0.50024742,109310.0,109300.0,0.67088279]
[1748276728096,0.51423613,109310.0,109300.0,0.67088279]
[1748276728668,0.51473361,109310.0,109300.0,0.67088279]
[1748276728869,0.51773361,109310.0,109300.0,0.67188279]
[1748276729280,1.08663451,109310.0,109300.0,0.67188279]
[1748276729630,0.51877361,109310.0,109300.0,0.67288279]
[1748276729809,0.51881361,109310.0,109300.0,0.67288279]
[1748276731556,1.03017766,109310.0,109300.0,0.63919462]
[1748276731976,1.98017766,109310.0,109300.0,0.63919462]
[1748276732184,2.06969917,109310.0,109300.0,0.57469462]
[1748276732392,2.13524002,109310.0,109300.0,0.57469462]
[1748276732599,2.13524002,109310.0,109300.0,0.51019462]
[1748276733285,0.01887243,109300.0,109290.0,0.00080069]
[1748276733494,1.55684857,109300.0,109290.0,0.00080069]
[1748276733705,2.28616269,109300.0,109290.0,0.00080069]
[1748276734189,0.34367713,109300.0,109290.0,0.00080069]
[1748276734421,0.47699713,109300.0,109290.0,0.00080069]
[1748276734653,0.20133554,109270.0,109260.0,0.0629]
[1748276734855,0.19220191,109260.0,109250.0,0.05794892]
[1748276735055,0.19220191,109260.0,109250.0,0.08824892]
[1748276735261,0.07263863,109240.0,109230.0,0.19275465]
[1748276735495,0.25572174,109240.0,109230.0,3.76987421]
[1748276735709,0.07263863,109240.0,109230.0,3.75483252]
[1748276735916,0.26570398,109250.0,109230.0,3.70344752]
[1748276736124,0.21135388,109260.0,109240.0,4.03028105]
[1748276736334,0.23015551,109260.0,109250.0,2.28162736]
[1748276736542,0.21185065,109260.0,109250.0,1.60202161]
[1748276736767,0.00049718,109260.0,109250.0,1.93802497]
[1748276737002,0.00049718,109260.0,109250.0,1.96548391]
[1748276737217,0.00049718,109260.0,109250.0,2.48524327]
[1748276737218,0.0096489,109260.0,109250.0,2.48524327]
[1748276737383,0.20285047,109260.0,109250.0,1.4625155]
[1748276737614,0.20285047,109260.0,109250.0,1.76335392]
[1748276737819,0.1921815,109280.0,109270.0,0.20133588]
[1748276738098,0.25566363,109280.0,109270.0,2.54382154]
[1748276738298,0.22048268,109280.0,109270.0,2.44870554]
[1748276738529,0.24933093,109290.0,109280.0,0.5858161]
[1748276738728,0.2767799,109290.0,109280.0,1.75181605]
[1748276738935,0.26763044,109290.0,109280.0,1.75181605]
[1748276739073,0.26763044,109290.0,109280.0,1.76021136]
[1748276739494,0.26763044,109290.0,109280.0,1.74882236]
[1748276739699,0.26763044,109290.0,109280.0,1.18114936]
[1748276740067,0.25763044,109290.0,109280.0,0.34839531]
[1748276740269,0.25767044,109290.0,109280.0,0.34839531]
[1748276740666,0.26967044,109290.0,109280.0,2.90171336]
[1748276740848,0.26967044,109290.0,109280.0,1.74221892]
[1748276741647,0.01318938,109290.0,109280.0,1.92523502]
[1748276741848,0.19618873,109290.0,109280.0,1.94353621]
[1748276742023,0.20533836,109290.0,109280.0,1.93438574]
[1748276742405,0.00404,109290.0,109280.0,1.95268684]
[1748276742605,0.27144914,109310.0,109300.0,0.60668044]
[1748276742812,0.28059777,109310.0,109300.0,3.96305562]
[1748276743040,0.28059777,109310.0,109300.0,2.73119592]
[1748276743249,0.28059777,109310.0,109300.0,2.37336292]
[1748276743681,0.26144999,109310.0,109300.0,2.10829892]
[1748276743891,0.26144999,109310.0,109300.0,2.11744805]
[1748276744108,0.26144999,109310.0,109300.0,2.322722]
[1748276744109,0.01018754,109310.0,109300.0,2.322722]
[1748276744363,0.00504,109310.0,109300.0,2.33826285]
[1748276744779,0.19715341,109310.0,109300.0,2.32911431]
[1748276745199,0.00504,109310.0,109300.0,2.33826285]
[1748276745346,0.00508,109310.0,109300.0,2.33826285]
[1748276745579,0.00508,109310.0,109300.0,2.34903003]
[1748276745766,0.00508,109310.0,109300.0,2.34803003]
[1748276745767,0.00108,109310.0,109300.0,2.34803003]
[1748276745963,0.00208,109310.0,109300.0,2.34903003]
[1748276746329,0.00208,109310.0,109300.0,2.69071003]
[1748276746977,0.00208,109310.0,109300.0,2.6945012]
[1748276747969,0.00208,109310.0,109300.0,2.16999468]
[1748276748172,0.00208,109310.0,109300.0,2.69450137]
[1748276748597,0.00208,109310.0,109300.0,2.67994302]
[1748276748945,0.32384524,109340.0,109330.0,0.4049]
[1748276749157,4e-05,109350.0,109340.0,0.58781567]
[1748276749409,4e-05,109350.0,109340.0,3.98681277]
[1748276749625,0.25122782,109350.0,109340.0,3.80389677]
[1748276749835,0.21037218,109350.0,109340.0,4.0142269]
[1748276750041,0.21037218,109350.0,109340.0,3.43295554]
[1748276750244,0.21037218,109350.0,109340.0,3.31852718]
[1748276750454,4e-05,109350.0,109340.0,3.18135254]
[1748276750685,0.20116951,109360.0,109350.0,0.5411721]
[1748276750897,0.00914344,109360.0,109350.0,5.16766102]
[1748276751116,0.24204372,109350.0,109340.0,0.0585606]
[1748276751328,0.20204372,109350.0,109340.0,0.03475148]
[1748276751529,0.19204372,109350.0,109340.0,0.03475148]
[1748276751735,0.19204372,109350.0,109340.0,0.04324348]
[1748276751971,0.19304372,109350.0,109340.0,0.15054348]
[1748276752187,0.19304372,109350.0,109340.0,0.04424348]
[1748276752645,0.19308372,109350.0,109340.0,0.04424348]
[1748276752881,0.19308372,109350.0,109340.0,0.02973597]
[1748276753474,0.19408372,109350.0,109340.0,0.02973597]
[1748276754391,0.19408372,109350.0,109340.0,0.00218707]
[1748276756197,0.84036372,109350.0,109340.0,0.02287532]
[1748276756824,0.99470928,109350.0,109340.0,0.00218707]
[1748276757683,0.26124345,109320.0,109310.0,0.34613567]
[1748276757887,0.26124345,109320.0,109310.0,0.47111061]
[1748276758574,0.25124345,109320.0,109310.0,0.02053461]
[1748276758785,0.20124345,109320.0,109310.0,0.02053461]
[1748276759667,0.20224345,109320.0,109310.0,0.02153461]
[1748276760082,0.20324345,109320.0,109310.0,0.02253461]
[1748276760293,0.29278901,109320.0,109310.0,0.02253461]
[1748276760506,0.29278901,109320.0,109310.0,0.00214939]
[1748276760706,0.38749065,109320.0,109310.0,0.00214939]
[1748276760914,0.41959065,109320.0,109310.0,0.00214939]
[1748276761354,0.49210368,109320.0,109310.0,0.00214939]
[1748276761987,0.49310368,109320.0,109310.0,0.00614939]
[1748276762420,0.49210368,109320.0,109310.0,0.00214939]
[1748276762851,0.83310368,109320.0,109310.0,0.00214939]
[1748276763078,0.88310368,109320.0,109310.0,0.00214939]
[1748276763307,0.88310368,109320.0,109260.0,0.002]
[1748276763308,0.20133554,109270.0,109260.0,0.002]
[1748276763513,0.69077711,109270.0,109260.0,0.002]
[1748276763944,0.70419182,109270.0,109260.0,0.002]
[1748276764161,0.70758176,109250.0,109220.0,0.002]
[1748276764370,1.00670732,109250.0,109220.0,0.002]
[1748276764835,1.00685635,109250.0,109220.0,0.002]
[1748276765054,1.07922405,109250.0,109220.0,0.002]
[1748276765275,0.42673469,109250.0,109220.0,0.002]
[1748276765485,0.46818699,109250.0,109220.0,0.002]
[1748276765699,0.32486699,109250.0,109240.0,0.003]
[1748276765936,0.44038699,109250.0,109240.0,0.003]
[1748276766147,0.29106699,109250.0,109240.0,0.002]
[1748276766395,0.43738699,109250.0,109240.0,0.002]
[1748276766610,0.43738699,109250.0,109240.0,0.003]
[1748276766611,0.50443212,109250.0,109240.0,0.003]
[1748276766825,0.56743212,109250.0,109240.0,0.003]
[1748276767029,0.44238699,109250.0,109240.0,0.003]
[1748276767884,0.44238699,109250.0,109240.0,1.898289]
[1748276767885,0.20152143,109250.0,109240.0,1.898289]
[1748276768094,0.23566163,109250.0,109240.0,2.28441236]
[1748276768303,0.23566163,109250.0,109240.0,1.59158447]
[1748276768512,0.23566163,109250.0,109240.0,1.47010136]
[1748276768947,0.37798163,109250.0,109240.0,0.002]
[1748276769152,0.46752719,109250.0,109240.0,0.002]
[1748276769355,0.46852719,109250.0,109240.0,0.002]
[1748276769560,0.64113583,109250.0,109240.0,0.002]
[1748276770077,0.64117583,109250.0,109240.0,0.002]
[1748276771146,0.26062143,109200.0,109190.0,0.56572]
[1748276771337,0.26977852,109200.0,109190.0,4.68599956]
[1748276771764,0.20146477,109200.0,109190.0,0.117724]
[1748276772177,0.20146477,109200.0,109190.0,0.148424]
[1748276772380,0.2423071,109200.0,109190.0,1.09542334]
[1748276772616,0.26062169,109200.0,109190.0,1.09313384]
[1748276772774,0.25146477,109200.0,109190.0,0.58692448]
[1748276772980,0.25246477,109200.0,109190.0,0.58892448]
[1748276773157,0.25346477,109200.0,109190.0,1.09513384]
[1748276773361,0.2543076,109200.0,109190.0,0.15937892]
[1748276773594,0.2043076,109200.0,109190.0,0.01095492]
[1748276773792,0.1943076,109200.0,109190.0,0.01095492]
[1748276773992,0.38570448,109200.0,109190.0,0.01095492]
[1748276774194,0.3407076,109200.0,109190.0,0.19586092]
[1748276774599,0.2043076,109200.0,109190.0,0.19586092]
[1748276774804,0.1933076,109200.0,109190.0,0.19386092]
[1748276775220,0.28285316,109200.0,109190.0,0.00895492]
[1748276775421,0.28385316,109200.0,109190.0,0.00995492]
[1748276775627,0.20992151,109200.0,109190.0,0.00995492]
[1748276775862,0.3407076,109200.0,109190.0,0.00895492]
[1748276776090,0.3417076,109200.0,109190.0,0.00049718]
[1748276776295,0.3427076,109200.0,109190.0,0.00049718]
[1748276776494,0.49565316,109200.0,109190.0,0.00049718]
[1748276776700,0.58517467,109200.0,109190.0,0.00049718]
[1748276776842,0.49565316,109200.0,109190.0,0.00049718]
[1748276777857,0.49265316,109200.0,109190.0,0.00049718]
[1748276778220,0.42825316,109200.0,109190.0,0.00049718]
[1748276778435,0.28285316,109200.0,109190.0,0.00049718]
[1748276778649,0.1963076,109200.0,109190.0,0.00149718]
[1748276778864,0.3427076,109200.0,109190.0,0.00149718]
[1748276779071,0.1963076,109200.0,109190.0,0.00149718]
[1748276779287,0.3427076,109200.0,109190.0,0.35224018]
[1748276781508,0.2423034,109220.0,109210.0,5.01735464]
[1748276781738,0.19229974,109230.0,109210.0,5.1880008]
[1748276781944,0.21060863,109230.0,109220.0,3.16652854]
[1748276782138,0.07251303,109240.0,109230.0,0.4043]
[1748276782293,0.26054372,109240.0,109230.0,3.37392392]
[1748276782496,0.26054414,109240.0,109230.0,2.42932656]
[1748276782698,0.26969821,109240.0,109230.0,1.73127392]
[1748276782922,0.19506636,109250.0,109240.0,0.3706]
[1748276783129,0.20337156,109250.0,109240.0,4.65910192]
[1748276783328,0.00249705,109250.0,109240.0,5.01604639]
[1748276783779,0.18556341,109250.0,109240.0,5.00689283]
[1748276784001,0.23556341,109250.0,109240.0,5.00689283]
[1748276784137,0.21142771,109220.0,109210.0,0.001]
[1748276784334,0.18311664,109220.0,109210.0,1.02949992]
[1748276784535,0.19227171,109220.0,109210.0,1.06925642]
[1748276784737,0.26058228,109220.0,109210.0,0.55389056]
[1748276784945,0.26142787,109220.0,109210.0,1.28557601]
[1748276785157,0.26142787,109220.0,109210.0,1.25749001]
[1748276785158,0.24227213,109220.0,109210.0,1.25749001]
[1748276785460,0.26058337,109220.0,109210.0,1.18749001]
[1748276785614,0.26058337,109220.0,109210.0,0.65368065]
[1748276785615,0.25242788,109220.0,109210.0,0.65368065]
[1748276785781,0.25342788,109220.0,109210.0,0.65368065]
[1748276787228,0.25342788,109220.0,109210.0,0.68115165]
[1748276787470,0.25342788,109220.0,109210.0,0.23779665]
[1748276787679,0.34982788,109220.0,109210.0,0.12816709]
[1748276787886,0.34982788,109220.0,109210.0,0.01246009]
[1748276788301,0.34982788,109220.0,109210.0,0.28045409]
[1748276788519,0.34882788,109220.0,109210.0,0.29426209]
[1748276788931,0.21242788,109220.0,109210.0,0.29426209]
[1748276789142,0.21242788,109220.0,109210.0,0.80047145]
[1748276789345,0.21342788,109220.0,109210.0,0.80047145]
[1748276789556,0.2042723,109220.0,109210.0,0.29426209]
[1748276789785,0.2042723,109220.0,109210.0,0.14523309]
[1748276790337,0.2042723,109220.0,109210.0,0.23706759]
[1748276790338,0.18411664,109220.0,109210.0,0.23706759]
[1748276790541,0.26142721,109220.0,109210.0,1.08098801]
[1748276790703,0.27158287,109220.0,109210.0,1.08098801]
[1748276790875,0.27258287,109220.0,109210.0,1.08298801]
[1748276791078,0.27258287,109220.0,109210.0,1.14588801]
[1748276791279,0.27158287,109220.0,109210.0,1.14388801]
[1748276791750,0.26342804,109220.0,109210.0,1.08298801]
[1748276792364,0.26258328,109220.0,109210.0,1.08298801]
[1748276792579,0.26342787,109220.0,109210.0,1.11328801]
[1748276792716,0.24427213,109220.0,109210.0,1.08298801]
[1748276792917,0.25342737,109220.0,109210.0,0.9646801]
[1748276793127,0.2442723,109220.0,109210.0,2.0928271]
[1748276793329,0.2442723,109220.0,109210.0,2.0760161]
[1748276793936,0.23511664,109220.0,109210.0,0.66478156]
[1748276794143,0.23511664,109220.0,109210.0,0.63197156]
[1748276794347,0.23511664,109220.0,109210.0,0.62175156]
[1748276794549,0.23511664,109220.0,109210.0,1.12796092]
[1748276795457,0.23511664,109220.0,109210.0,0.62175156]
[1748276796454,0.23511664,109220.0,109210.0,1.12796092]
[1748276797230,0.23511664,109220.0,109210.0,0.62175156]
[1748276797432,0.24511664,109220.0,109210.0,0.532206]
[1748276797631,0.19511664,109220.0,109210.0,0.164735]
[1748276798131,0.3390622,109220.0,109210.0,0.002]
[1748276798709,0.4854622,109220.0,109210.0,0.002]
[1748276798933,0.57498371,109220.0,109210.0,0.002]
[1748276799550,0.57498371,109220.0,109180.0,0.02]
[1748276799551,0.20148305,109190.0,109180.0,0.02]
[1748276799757,0.50182861,109190.0,109180.0,0.02]
[1748276800799,0.93564775,109190.0,109180.0,0.022]
[1748276801012,0.26597536,109140.0,109130.0,0.027549]
[1748276801218,0.41241536,109140.0,109130.0,6e-05]
[1748276802260,0.35552092,109140.0,109130.0,6e-05]
[1748276802473,0.47015736,109140.0,109130.0,6e-05]
[1748276802913,0.32371736,109140.0,109130.0,6e-05]
[1748276803121,0.47015736,109140.0,109130.0,6e-05]
[1748276803325,0.47015736,109140.0,109130.0,0.00106]
[1748276803326,0.44105736,109140.0,109130.0,0.00106]
[1748276803534,0.47355736,109140.0,109130.0,0.00106]
[1748276804181,0.47255736,109140.0,109130.0,0.00106]
[1748276804391,0.47455736,109140.0,109130.0,0.00106]
[1748276805189,0.32811736,109140.0,109130.0,0.00106]
[1748276805392,0.44209736,109140.0,109130.0,0.009552]
[1748276806394,0.44209736,109140.0,109130.0,0.00911977]
[1748276806597,0.26079517,109110.0,109100.0,0.80259847]
[1748276806871,0.25245855,109130.0,109120.0,0.00916422]
[1748276807086,0.0095947,109130.0,109120.0,2.33132501]
[1748276807288,0.21202591,109130.0,109120.0,0.266365]
[1748276807436,0.21202591,109130.0,109120.0,0.297965]
[1748276807637,0.00043208,109130.0,109120.0,0.79052664]
[1748276808148,0.00043208,109130.0,109120.0,1.29497881]
[1748276808350,0.00043208,109130.0,109120.0,0.78876945]
[1748276808709,0.00143208,109130.0,109120.0,1.12876945]
[1748276808935,0.21302591,109130.0,109120.0,0.0316]
[1748276809144,0.20263078,109110.0,109100.0,0.0337]
[1748276809352,0.18430125,109110.0,109100.0,4.69036887]
[1748276809559,0.21179491,109110.0,109100.0,4.49788492]
[1748276809708,0.21079491,109110.0,109100.0,4.49588492]
[1748276809910,0.2016301,109110.0,109100.0,3.33859092]
[1748276810139,0.21079491,109110.0,109100.0,3.33013077]
[1748276810352,0.21163095,109110.0,109100.0,1.89079436]
[1748276810512,0.26163095,109110.0,109100.0,0.109436]
[1748276810927,0.20248378,109100.0,109090.0,0.09763471]
[1748276811132,0.26164943,109100.0,109090.0,0.27625471]
[1748276811585,0.26164943,109100.0,109090.0,0.09763471]
[1748276811801,0.26164943,109100.0,109090.0,0.26949171]
[1748276812005,0.21164943,109100.0,109090.0,0.24199471]
[1748276812211,0.2804761,109100.0,109090.0,0.07013771]
[1748276812420,0.27131087,109100.0,109090.0,0.13523771]
[1748276812635,0.18381419,109100.0,109090.0,1.13189689]
[1748276812840,0.1929795,109100.0,109090.0,1.46960548]
[1748276813062,0.20214489,109100.0,109090.0,1.46917246]
[1748276813261,0.22131054,109100.0,109090.0,1.45463161]
[1748276813471,0.21214557,109100.0,109090.0,0.22356679]
[1748276813671,0.2746586,109100.0,109090.0,0.03200179]
[1748276814090,0.2756586,109100.0,109090.0,0.13599679]
[1748276814335,0.21314557,109100.0,109090.0,0.13599679]
[1748276814743,0.35859113,109100.0,109090.0,0.13699679]
[1748276814946,0.50511113,109100.0,109090.0,0.03300179]
[1748276815181,0.58120367,109100.0,109090.0,0.03221865]
[1748276815567,0.58120367,109100.0,109090.0,0.03121865]
[1748276815568,0.58020367,109100.0,109090.0,0.03121865]
[1748276816324,0.43368367,109100.0,109090.0,0.03121865]
[1748276816525,0.20314557,109100.0,109090.0,0.03121865]
[1748276816844,0.35370557,109100.0,109090.0,0.03221865]
[1748276817056,0.20714557,109100.0,109090.0,0.03221865]
[1748276817515,0.20314557,109100.0,109090.0,0.03121865]
[1748276817755,0.20714557,109100.0,109090.0,0.03221865]
[1748276817902,0.35370557,109100.0,109090.0,0.03221865]
[1748276818107,0.20714557,109100.0,109090.0,0.03221865]
[1748276818465,0.35370557,109100.0,109090.0,0.03221865]
[1748276818596,0.20714557,109100.0,109090.0,0.03221865]
[1748276818799,0.20714557,109100.0,109090.0,0.41831865]
[1748276819005,0.20714557,109100.0,109090.0,0.7674853]
[1748276819006,0.18881419,109100.0,109090.0,0.7674853]
[1748276819205,0.18881419,109100.0,109090.0,1.61994157]
[1748276819410,0.00549614,109100.0,109090.0,1.62910763]
[1748276819616,0.18881419,109100.0,109090.0,1.64673163]
[1748276819813,0.2571454,109100.0,109090.0,0.92052147]
[1748276820012,0.2531454,109100.0,109090.0,0.91952147]
[1748276820226,0.2521454,109100.0,109090.0,0.91952147]
[1748276820432,0.00149614,109100.0,109090.0,1.10385633]
[1748276820630,0.00149614,109100.0,109090.0,1.63756489]
[1748276820831,0.00149614,109100.0,109090.0,1.99160489]
[1748276821031,0.18326766,109130.0,109120.0,0.4049]
[1748276821230,0.18326766,109130.0,109120.0,2.93684569]
[1748276821231,0.20159333,109130.0,109120.0,2.93684569]
[1748276821467,0.28378349,109150.0,109140.0,0.34]
[1748276821634,0.24242042,109140.0,109130.0,1.08030353]
[1748276821873,0.2424205,109140.0,109130.0,1.49891956]
[1748276822070,0.26074499,109140.0,109130.0,1.49891956]
[1748276822277,0.26074499,109140.0,109130.0,1.50738073]
[1748276822479,0.26074549,109140.0,109130.0,1.15287773]
[1748276822629,0.24210572,109150.0,109140.0,0.3725]
[1748276822830,0.00916094,109150.0,109140.0,2.24839803]
[1748276823031,0.25155689,109150.0,109140.0,1.27697756]
[1748276823260,0.26155689,109150.0,109140.0,1.05670017]
[1748276823456,0.25155689,109150.0,109140.0,1.14624573]
[1748276824226,0.26071859,109150.0,109140.0,1.15540818]
[1748276824443,0.26071859,109150.0,109140.0,1.14624573]
[1748276824782,0.05,109150.0,109140.0,1.34782143]
[1748276824986,0.053,109150.0,109140.0,1.93825494]
[1748276825186,0.003,109150.0,109140.0,2.07635377]
[1748276825607,0.01216094,109150.0,109140.0,2.07635377]
[1748276826011,0.02132205,109150.0,109140.0,2.07635377]
[1748276826219,0.03048333,109150.0,109140.0,2.07635377]
[1748276826714,0.21371741,109150.0,109140.0,2.06719182]
[1748276826932,0.21371741,109150.0,109140.0,2.07635385]
[1748276827049,0.22287894,109150.0,109140.0,1.56098246]
[1748276827265,0.22287894,109150.0,109140.0,1.57014441]
[1748276827266,0.03048325,109150.0,109140.0,1.57014441]
[1748276827471,0.02132214,109150.0,109140.0,1.42358441]
[1748276827695,0.02132214,109150.0,109140.0,1.43440754]
[1748276827922,0.2228792,109150.0,109140.0,1.41608339]
[1748276828101,0.21371758,109150.0,109140.0,1.43440788]
[1748276828316,0.22287911,109150.0,109140.0,1.42524568]
[1748276828520,0.20455622,109150.0,109140.0,1.44357]
[1748276828719,0.21371843,109150.0,109140.0,1.14960761]
[1748276828984,0.21371843,109150.0,109140.0,1.42971361]
[1748276829538,0.21371826,109150.0,109140.0,1.42971361]
[1748276829739,0.21371826,109150.0,109140.0,1.07571361]
[1748276829943,0.21371826,109150.0,109140.0,1.28315361]
[1748276830345,0.20455706,109150.0,109140.0,1.28315361]
[1748276830672,0.20539561,109150.0,109140.0,0.79750405]
[1748276830913,0.32790864,109150.0,109140.0,0.35182305]
[1748276831122,0.52784911,109150.0,109140.0,0.01182305]
[1748276831331,0.47672864,109150.0,109140.0,0.01182305]
[1748276831550,0.5662742,109150.0,109140.0,0.01182305]
[1748276831758,0.58010344,109150.0,109140.0,0.01182305]
[1748276832403,0.58010344,109150.0,109140.0,0.001]
[1748276833565,0.26339383,109130.0,109120.0,4.969e-05]
[1748276833763,0.49945939,109130.0,109120.0,4.969e-05]
[1748276834757,0.50045939,109130.0,109120.0,0.00104969]
[1748276834999,0.20259383,109130.0,109120.0,0.21058969]
[1748276835211,0.50045939,109130.0,109120.0,0.00104969]
[1748276835418,0.50145939,109130.0,109120.0,0.00104969]
[1748276836270,0.50145939,109130.0,109120.0,4.969e-05]
[1748276836271,0.50045939,109130.0,109120.0,4.969e-05]
[1748276836476,0.26164926,109100.0,109090.0,0.05757686]
[1748276836653,0.26164926,109100.0,109090.0,0.03221865]
[1748276836905,0.26164926,109100.0,109090.0,0.13469465]
[1748276837325,0.20164926,109100.0,109090.0,0.13469465]
[1748276837495,0.20164926,109100.0,109090.0,0.03221865]
[1748276837699,0.35299482,109100.0,109090.0,0.03221865]
[1748276837904,0.20264926,109100.0,109090.0,0.03421865]
[1748276838291,0.051,109100.0,109090.0,2.98001608]
[1748276838498,0.051,109100.0,109090.0,2.99834863]
[1748276838700,0.27098031,109100.0,109090.0,1.29549907]
[1748276838902,0.06933054,109100.0,109090.0,1.29139827]
[1748276839122,0.051,109100.0,109090.0,0.96899827]
[1748276839327,0.26264926,109100.0,109090.0,0.49062108]
[1748276839601,0.26264926,109100.0,109090.0,0.38273808]
[1748276839771,0.26264926,109100.0,109090.0,0.53689908]
[1748276839969,0.26264926,109100.0,109090.0,0.74433908]
[1748276840608,0.26264926,109100.0,109090.0,0.92767394]
[1748276840810,0.26264926,109100.0,109090.0,1.04471929]
[1748276841144,0.051,109100.0,109090.0,0.86837929]
[1748276841349,0.051,109100.0,109090.0,1.09419184]
[1748276841350,0.26181423,109100.0,109090.0,1.09419184]
[1748276841520,0.06016514,109100.0,109090.0,1.12519125]
[1748276841733,0.051,109100.0,109090.0,1.12519125]
[1748276841896,0.01916346,109120.0,109110.0,0.01832919]
[1748276842111,0.00916346,109120.0,109110.0,3.11690765]
[1748276842311,0.01832726,109120.0,109110.0,1.61779561]
[1748276842515,0.21077559,109120.0,109110.0,1.5960365]
[1748276842932,0.21077559,109120.0,109110.0,1.60455593]
[1748276843135,0.21077559,109120.0,109110.0,1.60455584]
[1748276843347,0.21077559,109120.0,109110.0,1.62288529]
[1748276843542,0.22293956,109120.0,109110.0,1.62388529]
[1748276843809,0.24660957,109120.0,109110.0,1.63304993]
[1748276843993,0.21377551,109120.0,109110.0,1.63304993]
[1748276844305,0.21377551,109120.0,109110.0,1.62388529]
[1748276844306,0.22293948,109120.0,109110.0,1.62388529]
[1748276844510,0.22293948,109120.0,109110.0,1.62388538]
[1748276844687,0.003,109120.0,109110.0,1.97304976]
[1748276845309,0.003,109120.0,109110.0,1.98758492]
[1748276845737,0.02132717,109120.0,109110.0,2.19506492]
[1748276845940,0.02032717,109120.0,109110.0,2.19406492]
[1748276846064,0.02949097,109120.0,109110.0,1.68785556]